Cogmind - Beta 11.2 @@@ ROGUE MODE // 2023.02.05 @ 15:41:43 Player: 3.14 Result: Self-destructed Performance ------------- Evolutions (6) 3000 Regions Visited (11) 2200 Robots Destroyed (237) 1185 Value Destroyed (8246) 8246 Prototype IDs (14) 280 Alien Tech Used (0) 0 Bonus (1317) 1317 TOTAL SCORE: 16228 Bonus ------- High Alert Combat Kills 630 Follower Combat Kills 460 Met R17 at Cetus 500 Friendly Fire -273 Cogmind --------- Core Integrity 1136/1150 Matter 0/300 Energy 513/530 System Corruption 4% Temperature Cool (0) Movement Treading (160) Location -4/Factory Parts ------- > --- POWER (2) -------- Neutrino Core Neutrino Core > --- PROPULSION (4) --- Heavy Treads Centrium Heavy Treads > --- UTILITY (8) ------ Advanced Heat Sink Huge Storage Unit Transport Network Coupler Advanced Targeting Computer Improved Target Analyzer Transmission Jammer Layered Medium Armor Plating Advanced Shield Generator > --- WEAPON (5) ------- Autogun Flak Gun KE Penetrator KE Penetrator Advanced KE Penetrator > --- INVENTORY (25) --- Antimatter Reactor Armored Medium Treads Advanced Medium Treads Centrium Heavy Treads Improved Cooling System Matter Compressor (151) Transmission Jammer Centrium Medium Armor Plating Centrium Medium Armor Plating Centrium Medium Armor Plating Centrium Medium Armor Plating Centrium Medium Armor Plating Powered Armor Experimental Thermal Shield Hardlight Generator High-powered Tractor Beam Autogun Long-range Missile Launcher Scatter Rocket Array Plasma Sword Peak State ------------ > --- POWER ------------ Neutrino Core Neutrino Core > --- PROPULSION ------- Heavy Treads Centrium Heavy Treads > --- UTILITY ---------- Advanced Heat Sink Huge Storage Unit Transport Network Coupler Advanced Targeting Computer Improved Target Analyzer Transmission Jammer Layered Medium Armor Plating Advanced Shield Generator > --- WEAPON ----------- Autogun Flak Gun KE Penetrator KE Penetrator Advanced KE Penetrator > --- INVENTORY -------- Antimatter Reactor Armored Medium Treads Advanced Medium Treads Centrium Heavy Treads Improved Cooling System Matter Compressor Transmission Jammer Centrium Medium Armor Plating Centrium Medium Armor Plating Centrium Medium Armor Plating Centrium Medium Armor Plating Centrium Medium Armor Plating Powered Armor Experimental Thermal Shield Hardlight Generator High-powered Tractor Beam Autogun Long-range Missile Launcher Scatter Rocket Array Plasma Sword [Rating: 111] Favorites ----------- Power Neutrino Core Engine Cooled Ion Engine Power Core Neutrino Core Reactor Quantum Reactor Propulsion Light Treads Treads Light Treads Leg Aluminum Leg Utility Transport Network Coupler Device Transmission Jammer Storage Huge Storage Unit Processor Transport Network Coupler Protection Powered Armor Weapon Enhanced Autogun Energy Gun Beam Rifle Ballistic Gun Enhanced Autogun Ballistic Cannon Light Cannon Launcher Mini Grenade Launcher Slashing Weapon Plasma Sword Build | -11 -10 -9 -8 -7 -6 -6 -6 -5 -5 -5 -4 ------- Run | Scr Mat Mat Mat Fac Fac Ext Cet Fac Upp Upp Fac Slots Evolved 12 | . . 2 2 2 2 . . 2 . . 2 Power 1 | . . . . . . . . 1 . . . Propulsion 2 | . . 1 . . 1 . . . . . . Utility 6 | . . . 1 2 1 . . 1 . . 1 Weapon 3 | . . 1 1 . . . . . . . 1 Parts Attached 156 | . 17 17 17 13 13 21 16 25 5 5 7 Power 11 | . 2 3 . 1 1 . 1 2 1 . . Engine 6 | . 2 3 . . 1 . . . . . . Core 3 | . . . . 1 . . . 1 1 . . Reactor 2 | . . . . . . . 1 1 . . . Propulsion 32 | . 2 5 6 1 4 8 3 2 . . 1 Treads 32 | . 2 5 6 1 4 8 3 2 . . 1 Leg . | . . . . . . . . . . . . Wheel . | . . . . . . . . . . . . Hover . | . . . . . . . . . . . . Flight . | . . . . . . . . . . . . Utility 56 | . 5 2 4 7 7 7 6 13 1 1 3 Device 34 | . 1 . 1 4 5 7 2 11 1 1 1 Storage 4 | . 3 1 . . . . . . . . . Processor 5 | . 1 1 . 1 1 . . . . . 1 Hackware . | . . . . . . . . . . . . Protection 13 | . . . 3 2 1 . 4 2 . . 1 Artifact . | . . . . . . . . . . . . Weapon 57 | . 8 7 7 4 1 6 6 8 3 4 3 Energy Gun 1 | . 1 . . . . . . . . . . Energy Cannon . | . . . . . . . . . . . . Ballistic Gun 45 | . 4 7 7 3 1 5 6 5 2 3 2 Ballistic Cannon 1 | . 1 . . . . . . . . . . Launcher 9 | . 2 . . 1 . 1 . 2 1 1 1 Special Weapon . | . . . . . . . . . . . . Impact Weapon . | . . . . . . . . . . . . Slashing Weapon 1 | . . . . . . . . 1 . . . Piercing Weapon . | . . . . . . . . . . . . Special Melee Weapon . | . . . . . . . . . . . . Unidentified Prototypes 10 | . . 1 1 1 . . 4 3 . . . Corrupted Parts 1 | . . . . . . . 1 . . . . System Corruption 5 | . . . . . . . 5 . . . . Parts Lost 6 | . 2 . . . . . 2 1 1 . . Power 1 | . . . . . . . . . 1 . . Propulsion . | . . . . . . . . . . . . Utility 2 | . 1 . . . . . 1 . . . . Weapon 3 | . 1 . . . . . 1 1 . . . Highest Loss Streak 2 | . 2 . . . . . 2 1 1 . . To Critical Strikes . | . . . . . . . . . . . . Average Slot Usage (%) 96 | . 99 100 100 99 99 99 94 87 87 88 89 Engine 4 | . 14 11 9 6 . 6 1 . . . . Core 2 | . . . . . 5 . . 1 10 11 10 Reactor 1 | . . . . . . . 4 9 . . . Treads 21 | . 21 33 27 23 25 25 21 11 11 11 10 Device 6 | . 6 1 . 7 6 6 6 10 11 11 15 Storage 7 | . 14 11 9 7 6 6 6 5 5 5 5 Processor 15 | . 7 9 9 15 20 20 20 17 17 17 15 Protection 5 | . . . 9 7 6 6 6 5 5 5 5 Ballistic Gun 26 | . 21 28 36 29 25 25 26 22 23 22 26 Naked Turns . | . . . . . . . . . . . . Heaviest Build 151 | 11 52 97 105 116 119 120 125 151 138 137 146 Greatest Support 160 | 20 40 60 60 60 80 108 140 160 150 150 150 Greatest Overweight (x) 1 | . 1 1 1 1 1 1 1 1 . . . Average Overweight (x) . | . . . 1 1 1 1 . . . . . Largest Inventory Capacity 25 | . 20 25 25 25 25 25 25 25 25 25 25 Average Capacity 23 | . 16 21 25 25 25 25 25 25 25 25 25 Most Carried 25 | . 20 25 25 25 25 25 25 25 25 25 25 Average Carried 22 | . 10 20 24 24 22 24 24 24 24 25 22 Final Capacity 25 | 8 20 25 25 25 25 25 25 25 25 25 25 Final Carried 25 | 6 20 25 25 24 25 25 25 25 25 25 21 Class Distribution -------------------- 69% | Scavenger-Gunner 10% | Scavenger-Tank 9% | Mutant 3% | Scavenger-Skirmisher 3% | Skirmisher Dominant Class ---------------- Mutant | -10/Materials Scavenger-Skirmisher | -9/Materials Scavenger-Tank | -8/Materials Scavenger-Gunner | -7/Factory Scavenger-Gunner | -6/Factory Scavenger-Gunner | -6/Extension Scavenger-Gunner | -6/Cetus Scavenger-Gunner | -5/Factory Scavenger-Gunner | -5/Upper Caves Scavenger-Gunner | -5/Upper Caves Scavenger-Gunner | -4/Factory Resources | -11 -10 -9 -8 -7 -6 -6 -6 -5 -5 -5 -4 ----------- Run | Scr Mat Mat Mat Fac Fac Ext Cet Fac Upp Upp Fac Matter Collected 8176 | 200 445 512 752 591 1029 1284 1197 923 298 567 378 Remotely 632 | . . . 73 . 321 . . 238 . . . Salvage Created 12141 | . 771 1179 1173 732 2021 1993 816 1206 534 747 969 Parts 570 | . 51 68 68 44 61 70 41 61 30 26 50 Haulers Intercepted 22 | . 2 3 5 3 . 4 . 4 . . 1 Recyclers Shooed 22 | . . 3 . 2 9 2 . 2 . . 4 Parts Field Recycled . | . . . . . . . . . . . . Retrieved Matter . | . . . . . . . . . . . . Parts Self-Destructed 54 | . . . . . . . . . 27 27 . Prevented 2 | . . . . . . . . . 2 . . Kills | -11 -10 -9 -8 -7 -6 -6 -6 -5 -5 -5 -4 ------- Run | Scr Mat Mat Mat Fac Fac Ext Cet Fac Upp Upp Fac Combat Hostiles Destroyed 162 | . 15 24 17 6 14 12 16 16 14 16 12 Guns 149 | . 11 24 17 6 14 12 16 12 10 15 12 Cannons 2 | . 2 . . . . . . . . . . AOE 11 | . 2 . . . . . . 4 4 1 . Classes Destroyed 18 | . 8 2 5 1 1 1 . . . . . Worker 11 | . . . 1 . 4 2 . 2 . . 2 Builder 8 | . 1 . . 2 1 1 . 1 . . 2 Tunneler 3 | . 1 . . . . 1 . . . . 1 Hauler 22 | . 2 3 5 3 . 4 . 4 . . 1 Recycler 25 | . 1 2 . 5 8 7 . 1 . . 1 Mechanic 2 | . 1 . . 1 . . . . . . . Operator 1 | . 1 . . . . . . . . . . Watcher 3 | . . . . . 1 . 2 . . . . Swarmer 48 | . 3 6 . 4 3 3 6 8 9 5 1 Grunt 61 | . 12 11 8 . 9 4 . 3 2 10 2 Brawler 2 | . . 1 . . . . . . 1 . . Duelist 4 | . . . 1 . . . 1 . 1 . 1 Sentry 17 | . . 6 2 . 2 3 . 2 1 1 . Specialist 2 | . . . 2 . . . . . . . . Hunter 9 | . . . 3 1 . . 1 2 . . 2 Programmer 8 | . . . . 1 . 1 . . . . 6 Heavy 2 | . . . 1 . . . . 1 . . . Behemoth 1 | . . . . . . 1 . . . . . Cetus Guard 8 | . . . . . . . 8 . . . . Best Kill Streak 10 | . 9 5 5 5 10 3 6 10 5 5 7 Combat Bots Only 8 | . 4 5 5 4 4 3 6 8 5 5 4 Max Kills in Single Turn 6 | . 2 1 2 2 3 2 3 6 4 3 2 Gunslinging 2 | . . . 1 . 1 1 2 . . 2 1 Exploded 4 | . 1 . . . . . . 4 4 1 . Melee . | . . . . . . . . . . . . Uniques/NPCs Destroyed . | . . . . . . . . . . . . Combat | -11 -10 -9 -8 -7 -6 -6 -6 -5 -5 -5 -4 -------- Run | Scr Mat Mat Mat Fac Fac Ext Cet Fac Upp Upp Fac Damage Taken 8568 | . 576 562 1012 293 970 325 1939 1236 303 667 685 Core 767 | . 78 35 98 12 110 10 237 139 24 10 14 Absorbed by Shields 1048 | . . . . . 60 66 . 414 16 244 248 Reduced by Siege Mode 135 | . . . . . . . 88 47 . . . Regen/Repaired (Parts) 140 | . . . . . 140 . . . . . . Core Remaining (%) 82 | 100 68 91 82 98 . . 58 . . 82 . Volleys Fired 494 | . 72 67 45 29 65 51 52 42 17 27 27 Largest 5 | . 2 3 4 4 4 4 4 4 4 4 5 Hottest 152 | . 76 96 101 123 106 109 111 104 114 112 152 Shots Fired 1741 | . 141 201 180 116 230 201 208 165 65 102 132 Gun 1726 | . 133 201 180 115 230 200 208 164 64 100 131 Cannon 5 | . 5 . . . . . . . . . . Launcher 10 | . 3 . . 1 . 1 . 1 1 2 1 Special . | . . . . . . . . . . . . Kinetic 1698 | . 130 176 180 115 230 200 208 164 64 100 131 Thermal 33 | . 8 25 . . . . . . . . . Explosive 10 | . 3 . . 1 . 1 . 1 1 2 1 Electromagnetic . | . . . . . . . . . . . . Robot Hit Streak 28 | . 14 28 18 11 14 23 24 25 9 16 14 Robot Miss Streak 18 | . 7 8 3 3 5 3 4 10 3 4 18 Penetration Max 1 | . . . 1 . 1 1 1 1 1 . 1 Secondary Targets 39 | . 2 3 5 . 3 3 8 1 3 7 4 Max Gunslinging Chain 2 | . 1 1 1 . 1 1 2 1 1 2 1 Shots Hit Robots 1154 | . 93 121 123 63 147 149 157 113 42 61 85 Core Hits 532 | . 39 58 53 21 72 72 57 59 24 31 46 Critical Kills 28 | . . . . . 1 5 5 3 2 3 9 Critical Parts Destroyed 39 | . . 2 3 1 6 8 3 5 2 3 6 Critical Strikes 73 | . 2 4 3 1 7 13 9 9 4 6 15 Burn 2 | . . 2 . . . . . . . . . Destroy 69 | . . 2 3 1 7 13 9 9 4 6 15 Blast 2 | . 2 . . . . . . . . . . Melee Attacks . | . . . . . . . . . . . . Impact . | . . . . . . . . . . . . Slashing . | . . . . . . . . . . . . Piercing . | . . . . . . . . . . . . Sneak Attacks . | . . . . . . . . . . . . Combat Hostiles . | . . . . . . . . . . . . Follow-up Attacks . | . . . . . . . . . . . . Damage Inflicted 23215 | . 1164 1512 1905 1270 3422 3300 3050 2581 1000 1621 2390 Guns 21469 | . 918 1473 1887 1143 3318 3260 3038 2095 834 1229 2274 Cannons 82 | . 82 . . . . . . . . . . Explosions 1347 | . 157 . . 109 . . . 442 166 392 81 Melee . | . . . . . . . . . . . . Ramming 317 | . 7 39 18 18 104 40 12 44 . . 35 Kinetic 21260 | . 927 1255 1887 1143 3318 3260 3038 2095 834 1229 2274 Thermal 291 | . 73 218 . . . . . . . . . Explosive 1347 | . 157 . . 109 . . . 442 166 392 81 Electromagnetic . | . . . . . . . . . . . . Impact . | . . . . . . . . . . . . Slashing . | . . . . . . . . . . . . Piercing . | . . . . . . . . . . . . Highest Corruption 5 | . . 1 . . . . 5 1 1 1 4 Average Corruption 1 | . . 1 . . . . 5 1 1 1 2 Corruption Purged . | . . . . . . . . . . . . Corruption Blocked . | . . . . . . . . . . . . Effects 23 | . . 5 . . . . 1 4 4 5 4 Message Errors 8 | . . 2 . . . . . 2 2 1 1 Matter Fused 9 | . . 2 . . . . 1 1 . 4 1 Data Loss (major) 4 | . . 1 . . . . . . 2 . 1 Misfires 1 | . . . . . . . . . . . 1 Alerts 1 | . . . . . . . . 1 . . . Overload Shots . | . . . . . . . . . . . . Overflow Damage 2 | . . . . . . . . . . . 2 Projectiles . | . . . . . . . . . . . . Explosions 2 | . . . . . . . . . . . 2 Melee . | . . . . . . . . . . . . Knockbacks 5 | . 1 . . . 1 2 . . . . 1 Impact 4 | . . . . . 1 2 . . . . 1 Kinetic 1 | . 1 . . . . . . . . . . Secondary . | . . . . . . . . . . . . Self-Inflicted Damage . | . . . . . . . . . . . . Shots . | . . . . . . . . . . . . Rammed 33 | . 3 6 3 2 8 4 . 3 . . 4 Targets Rammed 36 | . 3 6 3 2 8 6 1 3 . . 4 Kicked . | . . . . . . . . . . . . Crushed 3 | . . . . . . 2 1 . . . . Highest Temperature 384 | . 25 260 179 164 232 93 69 384 4 28 93 Average Temperature 60 | . 9 65 59 61 73 32 26 127 4 12 32 Received Heat Transfer 1623 | . 249 195 324 . 377 105 99 50 9 185 30 Effects 5 | . . . . . 2 . . 3 . . . Shutdowns 1 | . . . . . . . . 1 . . . Interference 2 | . . . . . 2 . . . . . . Matter Decay 1 | . . . . . . . . 1 . . . Damage (minor) 1 | . . . . . . . . 1 . . . Siege Activations 4 | . . . . . . . 1 3 . . . Total Turns 103 | . . . . . . . 56 47 . . . Longest Duration 56 | . . . . . . . 56 22 . . . Robots Corrupted . | . . . . . . . . . . . . Combat Hostiles . | . . . . . . . . . . . . Parts Fried . | . . . . . . . . . . . . Impact Corruptions . | . . . . . . . . . . . . Robots Melted . | . . . . . . . . . . . . Combat Hostiles . | . . . . . . . . . . . . Parts Melted 1 | . . . . . . 1 . . . . . Heat Transferred 888 | . 185 703 . . . . . . . . . Parts Sabotaged . | . . . . . . . . . . . . Parts Stolen . | . . . . . . . . . . . . Parts Stripped . | . . . . . . . . . . . . Power Chain Reactions . | . . . . . . . . . . . . Missiles Intercepted . | . . . . . . . . . . . . Alert | -11 -10 -9 -8 -7 -6 -6 -6 -5 -5 -5 -4 ------- Run | Scr Mat Mat Mat Fac Fac Ext Cet Fac Upp Upp Fac Peak Influence 769 | . 312 577 472 299 435 451 448 769 . . 645 Initial 286 | . . 20 188 196 93 156 232 250 . . 286 Average 263 | . 133 235 315 172 153 247 357 511 . . 405 Maximum Alert Level 3 | . 1 2 2 1 2 2 2 3 . . 2 Low Security (%) 42 | . 69 49 18 92 69 38 . . . . . Level 1 35 | . 30 21 69 7 27 39 44 34 . . 58 Level 2 20 | . . 28 11 . 2 21 54 50 . . 41 Level 3 1 | . . . . . . . . 15 . . . Level 4 . | . . . . . . . . . . . . Level 5 . | . . . . . . . . . . . . High Security . | . . . . . . . . . . . . Max Security . | . . . . . . . . . . . . Squads Dispatched 22 | . 3 4 6 2 4 . . 2 . . 1 Investigation 4 | . 1 1 2 . . . . . . . . Extermination 4 | . . . . 1 1 . . 1 . . 1 Reinforcement 11 | . 2 3 4 1 . . . 1 . . . Assault . | . . . . . . . . . . . . Garrison 3 | . . . . . 3 . . . . . . Intercept . | . . . . . . . . . . . . Searches Triggered . | . . . . . . . . . . . . Construction Impeded 1 | . . 1 . . . . . . . . . Haulers Reinforced . | . . . . . . . . . . . . Active Scanning Responses . | . . . . . . . . . . . . Cargo Convoy Interrupts . | . . . . . . . . . . . . Stealth | -11 -10 -9 -8 -7 -6 -6 -6 -5 -5 -5 -4 --------- Run | Scr Mat Mat Mat Fac Fac Ext Cet Fac Upp Upp Fac Distress Signals 10 | . 1 2 1 . 2 1 2 1 . . . Communications Jammed 22 | . . . . 1 11 3 . 3 . . 4 Distress Signals 19 | . . . . . 11 3 . 1 . . 4 Times Spotted 246 | . 26 32 27 12 25 28 21 26 14 16 19 Peak Tracking Total 8 | . 4 6 6 4 5 5 5 8 4 5 5 Tactical Retreats 21 | . . 3 . 1 4 2 . 8 2 1 . Traps | -11 -10 -9 -8 -7 -6 -6 -6 -5 -5 -5 -4 ------- Run | Scr Mat Mat Mat Fac Fac Ext Cet Fac Upp Upp Fac Traps Triggered 9 | . 1 1 1 2 . 1 . 2 . . 1 Indirectly . | . . . . . . . . . . . . Trap Hack Attempts . | . . . . . . . . . . . . Triggered . | . . . . . . . . . . . . Disarmed . | . . . . . . . . . . . . Reprogrammed . | . . . . . . . . . . . . Reused . | . . . . . . . . . . . . Traps Extracted . | . . . . . . . . . . . . Installed . | . . . . . . . . . . . . Triggered 3 | . . . . . . 1 . . 1 1 . Machines | -11 -10 -9 -8 -7 -6 -6 -6 -5 -5 -5 -4 ---------- Run | Scr Mat Mat Mat Fac Fac Ext Cet Fac Upp Upp Fac Machines Disabled 16 | . . . . 6 1 5 1 1 . . 2 Max in Single Turn 5 | . . . . 5 1 1 . 1 . . 1 Machines Sabotaged . | . . . . . . . . . . . . Garrisons Compromised . | . . . . . . . . . . . . Overloaded Fab Kills . | . . . . . . . . . . . . Hacking | -11 -10 -9 -8 -7 -6 -6 -6 -5 -5 -5 -4 --------- Run | Scr Mat Mat Mat Fac Fac Ext Cet Fac Upp Upp Fac Machines Accessed 21 | . 5 3 4 1 2 6 . . . . . Terminals 16 | . 5 2 3 . 1 5 . . . . . Fabricators . | . . . . . . . . . . . . Repair Stations 4 | . . . 1 1 1 1 . . . . . Recycling Units . | . . . . . . . . . . . . Scanalyzers 1 | . . 1 . . . . . . . . . Garrison Access . | . . . . . . . . . . . . Total Hacks 54 | . 19 8 8 1 6 12 . . . . . Successful 28 | . 10 4 2 . 5 7 . . . . . Failed 26 | . 9 4 6 1 1 5 . . . . . Catastrophic 4 | . 1 1 1 . . 1 . . . . . Database Lockouts . | . . . . . . . . . . . . Manual 29 | . 11 4 6 . . 7 1 . . . . Terminals 44 | . 19 5 7 . 2 11 . . . . . Fabricators . | . . . . . . . . . . . . Repair Stations 7 | . . . 1 1 4 1 . . . . . Recycling Units . | . . . . . . . . . . . . Scanalyzers 3 | . . 3 . . . . . . . . . Garrison Access . | . . . . . . . . . . . . Terminal Hacks 15 | . 8 1 1 . 1 4 . . . . . Part Schematic 3 | . 1 1 . . . 1 . . . . . Robot Schematic 2 | . 2 . . . . . . . . . . Prototype ID Bank 2 | . 2 . . . . . . . . . . Open Door 2 | . . . . . 1 1 . . . . . Unreport Threat 3 | . 2 . . . . 1 . . . . . Locate Traps 2 | . 1 . . . . 1 . . . . . Recall Investigation 1 | . . . 1 . . . . . . . . Fabricator Hacks . | . . . . . . . . . . . . Repair Station Hacks 4 | . . . . . 4 . . . . . . Scan Component 2 | . . . . . 2 . . . . . . Repair 2 | . . . . . 2 . . . . . . Recycling Unit Hacks . | . . . . . . . . . . . . Scanalyzer 3 | . . 3 . . . . . . . . . Insert Component 1 | . . 1 . . . . . . . . . Analyze 2 | . . 2 . . . . . . . . . Garrison Access Hacks . | . . . . . . . . . . . . Unauthorized Hacks 6 | . 2 . 1 . . 3 . . . . . Terminals 6 | . 2 . 1 . . 3 . . . . . Botnet 6 | . 2 . 1 . . 3 . . . . . Fabricators . | . . . . . . . . . . . . Repair Stations . | . . . . . . . . . . . . Recycling Units . | . . . . . . . . . . . . Scanalyzers . | . . . . . . . . . . . . Garrison Access . | . . . . . . . . . . . . Data Cores Recovered 1 | . . . . . . 1 . . . . . Used . | . . . . . . . . . . . . Hacking Detections 18 | . 4 3 4 1 1 4 1 . . . . Full Trace Events 2 | . . 1 1 . . . . . . . . Feedback Events . | . . . . . . . . . . . . Feedback Blocked . | . . . . . . . . . . . . Robot Schematics Acquired 2 | . 2 . . . . . . . . . . Robots Built . | . . . . . . . . . . . . Authchips . | . . . . . . . . . . . . Time . | . . . . . . . . . . . . Total Robot Build Rating . | . . . . . . . . . . . . Part Schematics Acquired 4 | . 1 2 . . . 1 . . . . . Parts Built . | . . . . . . . . . . . . Authchips . | . . . . . . . . . . . . Time . | . . . . . . . . . . . . Total Part Build Rating . | . . . . . . . . . . . . Parts Repaired 2 | . . . . . 2 . . . . . . Time 82 | . . . . . 82 . . . . . . Parts Recycled . | . . . . . . . . . . . . Recycled Matter . | . . . . . . . . . . . . Retrieved Matter . | . . . . . . . . . . . . Retrieved Components . | . . . . . . . . . . . . Parts Scanalyzed 1 | . . 1 . . . . . . . . . Part Schematics Acquired 1 | . . 1 . . . . . . . . . Parts Damaged . | . . . . . . . . . . . . Bothacking | -11 -10 -9 -8 -7 -6 -6 -6 -5 -5 -5 -4 ------------ Run | Scr Mat Mat Mat Fac Fac Ext Cet Fac Upp Upp Fac Used RIF Installer . | . . . . . . . . . . . . Robots Hacked . | . . . . . . . . . . . . Non-combat . | . . . . . . . . . . . . Combat . | . . . . . . . . . . . . Robot Hacks Applied . | . . . . . . . . . . . . Relay Couplers Released . | . . . . . . . . . . . . Fabnet Peak Effective % . | . . . . . . . . . . . . Robots Rewired 10 | . . . . . . 10 . . . . . Allies Hacked . | . . . . . . . . . . . . Hacks Repelled . | . . . . . . . . . . . . Allies | -11 -10 -9 -8 -7 -6 -6 -6 -5 -5 -5 -4 -------- Run | Scr Mat Mat Mat Fac Fac Ext Cet Fac Upp Upp Fac Total Allies 12 | . . . . . . 11 1 . . . . Largest Group 10 | . . . . . . 10 2 . . . . Highest-Rated Group 406 | . . . . . . 406 156 . . . . Highest-Rated Ally 159 | . . . . . . 159 125 . . . . Total Orders . | . . . . . . . . . . . . Ally Attacks 124 | . . . . . . 113 11 . . . . Total Damage 3081 | . . . . . . 2897 184 . . . . Kills 20 | . . . . . . 18 2 . . . . Allies Corrupted . | . . . . . . . . . . . . Allies Melted . | . . . . . . . . . . . . Intel | -11 -10 -9 -8 -7 -6 -6 -6 -5 -5 -5 -4 ------- Run | Scr Mat Mat Mat Fac Fac Ext Cet Fac Upp Upp Fac Robot Analysis Total . | . . . . . . . . . . . . Derelict Logs Recovered 1 | . . . . . . . . . 1 . . Drone Launches . | . . . . . . . . . . . . Drone Recoveries . | . . . . . . . . . . . . Exploration | -11 -10 -9 -8 -7 -6 -6 -6 -5 -5 -5 -4 ------------- Run | Scr Mat Mat Mat Fac Fac Ext Cet Fac Upp Upp Fac Turns Passed 10581 | . 986 893 1007 1170 881 1910 634 865 1126 679 430 Spaces Moved 4240 | 1 354 363 336 430 241 643 261 400 665 355 191 Core . | . . . . . . . . . . . . Treads 4149 | . 264 363 336 430 241 643 261 400 665 355 191 Legs 91 | 1 90 . . . . . . . . . . Wheels . | . . . . . . . . . . . . Hover . | . . . . . . . . . . . . Flight . | . . . . . . . . . . . . Fastest Speed 120 | 120 120 160 240 246 245 242 160 160 160 160 160 Average Speed 198 | 120 203 174 242 246 245 242 169 161 160 160 160 Slowest Speed 246 | 120 240 240 246 246 245 245 242 240 160 160 160 Overloaded Moves . | . . . . . . . . . . . . Propulsion Burnouts . | . . . . . . . . . . . . Robots Hopped . | . . . . . . . . . . . . Cave-ins Triggered . | . . . . . . . . . . . . Exploration Rate (%) 39 | 2 74 44 41 14 8 69 65 10 72 63 6 Regions Visited 11 Branch Regions 4 Pre-discovered Areas . | . . . . . . . . . . . . Known Exits Taken . | . . . . . . . . . . . . Unknown Exits Taken 11 | 1 1 1 1 1 1 1 1 1 1 1 . Scrap Searched 5 | . . . . . . . . . 4 1 . Spaces Dug 11 | . 5 . . . . . . . . . 6 Terrain Destroyed 150 | . 13 . . 23 . 9 . 35 33 14 23 Melee . | . . . . . . . . . . . . Projectile 29 | . . . . 1 . . . 6 3 2 17 AOE 121 | . 13 . . 22 . 9 . 29 30 12 6 Terrain Rammed . | . . . . . . . . . . . . Walls Destroyed . | . . . . . . . . . . . . Machines Disabled . | . . . . . . . . . . . . Actions | -11 -10 -9 -8 -7 -6 -6 -6 -5 -5 -5 -4 --------- Run | Scr Mat Mat Mat Fac Fac Ext Cet Fac Upp Upp Fac Total 5493 | . 492 508 436 494 413 908 370 528 690 406 248 Wait 247 | . 11 23 4 . 83 64 6 28 . 18 10 Move 4229 | . 353 362 335 429 240 642 260 399 664 354 191 Hop . | . . . . . . . . . . . . Pick Up 102 | . 23 13 11 9 2 11 14 13 2 . 4 Fast Attach 26 | . 1 2 1 4 3 1 5 8 . 1 . Attach 30 | . 4 2 2 2 2 1 7 5 1 . 4 Detach . | . . . . . . . . . . . . Swap 100 | . 12 13 14 7 8 19 4 12 4 4 3 Drop 136 | . 13 20 21 12 2 20 21 18 2 2 5 Fire 494 | . 72 67 45 29 65 51 52 42 17 27 27 Melee . | . . . . . . . . . . . . Ram . | . . . . . . . . . . . . Kick . | . . . . . . . . . . . . Crush 36 | . 3 6 3 2 8 6 1 3 . . 4 Escape Stasis . | . . . . . . . . . . . . Rewire 93 | . . . . . . 93 . . . . . Trap . | . . . . . . . . . . . . Miscellaneous . | . . . . . . . . . . . . Route ------- -11/Scrapyard -10/Materials (discovered 2 exits: *Mat / [*Min]) -9/Materials -8/Materials (discovered 2 exits: *Fac x2) -7/Factory -6/Factory -6/Extension (discovered 2 exits: [*Fac] / *Cet) -6/Cetus (discovered 3 exits: [*Fac x2] / [*Arc]) -5/Factory -5/Upper Caves -5/Upper Caves -4/Factory (discovered 1 exit: [*Upp]) History --------- Turn | Location | Event 1 | -11/Scrapyard | Discovered new exit (range 0) 1 | -11/Scrapyard | Entered Materials 263 | -10/Materials | Discovered new exit (range 10) 313 | -10/Materials | Build established: Mutant 878 | -10/Materials | Discovered new exit (range 16) 987 | -10/Materials | Entered another Materials area 987 | -9/Materials | Evolved 2 slots: Propulsion x1, Weapon x1 1454 | -9/Materials | Build established: Skirmisher 1603 | -9/Materials | Discovered new exit (range 16) 1784 | -9/Materials | Build established: Scavenger-Skirmisher 1880 | -9/Materials | Entered another Materials area 1880 | -8/Materials | Evolved 2 slots: Utility x1, Weapon x1 2209 | -8/Materials | Build established: Scavenger-Tank 2373 | -8/Materials | Discovered new exit (range 9) 2836 | -8/Materials | Discovered new exit (range 5) 2887 | -8/Materials | Entered Factory 2887 | -7/Factory | Evolved 2 slots: Utility x2 3153 | -7/Factory | Found Powered Armor 3159 | -7/Factory | Found Powered Armor 3162 | -7/Factory | Found Powered Armor 3166 | -7/Factory | Found Powered Armor 3179 | -7/Factory | Build established: Scavenger-Gunner 3600 | -7/Factory | Found Prototype Launcher 3600 | -7/Factory | Identified Rocket Array 3606 | -7/Factory | Found Rocket Array 3724 | -7/Factory | Discovered new exit (range 9) 4057 | -7/Factory | Entered another Factory area 4057 | -6/Factory | Evolved 2 slots: Propulsion x1, Utility x1 4115 | -6/Factory | Repaired Arm. Treads 4160 | -6/Factory | Repaired Gauss Rifle 4601 | -6/Factory | Garrison activated, responded to threat 4926 | -6/Factory | Discovered new exit (range 6) 4938 | -6/Factory | Entered Extension 5604 | -6/Extension | Rescued A7 5938 | -6/Extension | Disrupted transfer network 6127 | -6/Extension | Spotted B-75 Beast 6132 | -6/Extension | Allies destroyed B-75 Beast 6153 | -6/Extension | Spotted B-75 Beast 6169 | -6/Extension | Destroyed B-75 Beast 6459 | -6/Extension | Discovered new exit (range 16) 6462 | -6/Extension | Discovered new exit (range 15) 6848 | -6/Extension | Entered Cetus 6848 | -6/Cetus | Accompanied by 2 allies (A7) 6853 | -6/Cetus | Acquired a Cetus Manufacturing Module code from A7 6880 | -6/Cetus | Spotted Cetus Guard 6880 | -6/Cetus | Spotted Cetus Guard 6882 | -6/Cetus | Spotted Cetus Guard 6891 | -6/Cetus | Destroyed Cetus Guard 6904 | -6/Cetus | Destroyed Cetus Guard 6905 | -6/Cetus | Spotted Cetus Guard 6910 | -6/Cetus | Destroyed Cetus Guard 6920 | -6/Cetus | Destroyed Cetus Guard 6926 | -6/Cetus | Extracted ID and sensor layout for unrecognized location from A7's data core 7037 | -6/Cetus | Started Cetus Manufacturing Module 7062 | -6/Cetus | Manufactured an Enhanced Grunt 7068 | -6/Cetus | Cetus Manufacturing Module disabled 7166 | -6/Cetus | Discovered new exit (range 15) 7291 | -6/Cetus | Discovered new exit (range 16) 7322 | -6/Cetus | Spotted Cetus Guard 7322 | -6/Cetus | Spotted Cetus Guard 7332 | -6/Cetus | Spotted Cetus Guard 7333 | -6/Cetus | Spotted Cetus Guard 7347 | -6/Cetus | Destroyed Cetus Guard 7366 | -6/Cetus | Destroyed Cetus Guard 7370 | -6/Cetus | Destroyed Cetus Guard 7376 | -6/Cetus | Destroyed Cetus Guard 7395 | -6/Cetus | Found Prototype Device 7395 | -6/Cetus | Identified Exp. Thermal Shield 7412 | -6/Cetus | Discovered new exit (range 15) 7425 | -6/Cetus | Met Revision 17 7482 | -6/Cetus | Entered Factory 7482 | -5/Factory | Evolved 2 slots: Power x1, Utility x1 7716 | -5/Factory | Found Prototype Launcher 7716 | -5/Factory | Identified Scatter Rocket Array 7734 | -5/Factory | Found Scatter Rocket Array 7841 | -5/Factory | Destroyed 8 combat bots 7959 | -5/Factory | Discovered new exit (range 13) 8347 | -5/Factory | Entered Upper Caves 8369 | -5/Upper Caves | Attracted the attention of an 0b10 checkpoint 8994 | -5/Upper Caves | Learned 4 Factory zone layouts 9452 | -5/Upper Caves | Discovered new exit (range 13) 9473 | -5/Upper Caves | Entered another Upper Caves area 10029 | -5/Upper Caves | Attracted the attention of an 0b10 checkpoint 10140 | -5/Upper Caves | Discovered new exit (range 9) 10152 | -5/Upper Caves | Entered Factory 10152 | -4/Factory | Evolved 2 slots: Utility x1, Weapon x1 10237 | -4/Factory | Discovered new exit (range 11) 10582 | -4/Factory | Self-destructed Last Messages --------------- 10571_ K-01 Serf collects debris. 10573_ WN=AYH0Y5:E#M7PCSFPDIVQ 10573_ Slug penetrates G-67 Veteran. 10574_ K-01 Serf collects debris. 10574_ R-10 Processor destroyed. 10574_ K-01 Serf collects debris. 10577_ Slug penetrates Wall. 10577_ G-67 Veteran suffers critical hit (Destroy). 10577_ G-67 Veteran destroyed. 10577_ K-01 Serf suffers critical hit (Destroy). 10577_ Destroyed Wheel. 10577_ Slug penetrates K-01 Serf. 10577_ Destroyed Med. Matter Pod. 10577_ K-01 Serf destroyed. 10577_ K-01 Serf cleans the Subcomponent Replicator. 10577_ K-01 Serf collects debris. 10579_ U-05 Engineer builds a Door. 10580_ K-01 Serf collects debris. 10581_ Penetrated by Slug. 10581_ K-01 Serf collects debris. Map ----- +----------------------------------------------------+ | ????? #???????????????????????????????? | | ?????#############???????????????????????????????? | | ????? #?##########???????????????????????????? | | ????? #?# #??????????????????????????? | | ????? #?# #??????????????????????????? | | ????? #?# #??????????????????????????? | | ????? #?# #??????????????????????????? | | ????? #?# #??????????????????????????? | | ????? #?# #??????????????????????????? | | ????? #?# #??????????????????????????? | | ???????????????????? ????????????????????????????? | | ######+#############+###### #????????????????????? | | ??? ???????????????? | | ? ??????????????? | | ??? ???????????????? | | "" "" "" ????????????????? | | [ "" "" "" ????????????????? | | ################ """ """ """ #?????????????????? | | | !#??????????# """ """ """ u#?????????????????? | | = #??????????# """ """ k= #?????????????????? | | #??????????# w k !%=| ###### ??????????? | | """ #??????????# *%k! u%! + ??????????? | | """ #??????????# = uk #????????????? | | """ #??????????# * u#????????????? | | """ #??????????# % %! / !?????????? | | #??????????# @ %######???????????????? | | [#??????????##+#######k A#????????????????????? | | #?###?????????? ????#!!k#????????????????????? | | ??????????????# #??#!%[#????????????????????? | | ??????????????# """" #??#!*=#????????????????????? | | ??????????????# """" #??# %!#????????????????????? | | ??????????????# """" #??# = #????????????????????? | | ??????????????# """" #??# *#????????????????????? | | ??????????????########??# =%#????????????????????? | | ????????????????????????? #????????????????????? | | #?????????????????????? ;????????????????????? | | #?????????????????????? #????????????????????? | | #?????????????????????? #????????????????????? | | #?????????????????????? #????????????????????? | | #??????????????????????h #????????????????????? | | #?????????????????????? ?????????????????????? | | ###??????????????????????????????????????????????? | | ?????????????????????????A???????????????????????? | | ?????????????????????????????????????????????????? | | ?????????????????????????????????????????????????? | | ????????????????????????????????A????????????????? | | ?????????????????????????????????????????????????? | | ?????????????????????????????????????????????????? | | ????????????????????????????????????????????A????? | | ?????????????????????????????????????????????????? | +----------------------------------------------------+ Best States ------------- Heat Dissipation 62 Energy Generation 41 Energy Capacity 575 Matter Stores 300 Matter Capacity 300 Sight Range 16 Terrain Scan Density 10 Jamming Range 12 Armor Coverage 900 Resistance: TH 30 Evasion (%) 55 Targeting Accuracy 8 Target Analysis 6 Recoil Reduction 4 Item Schematics ----------------- Huge Storage Unit | -10/Materials | Hacked Lgt. EM Pulse Cannon | -9/Materials | Hacked Shield Generator | -9/Materials | Scanalyzed Imp. Target Analyzer | -6/Extension | Hacked Robot Schematics ------------------ O-16 Technician | -10/Materials | Hacked M-13 Machinist | -10/Materials | Hacked Fabricated ------------ Nothing Alien Tech Used ----------------- None Achievements -------------- None Challenges ------------ None Game ------ Seed KineticSystemMultirail Manual? 0 Play Time 01:00:25 Cumulative 761.4 hours Start 2023.02.05 @ 14:43:46 End 2023.02.05 @ 15:41:43 Sessions 1 Manual Loads 0 Difficulty Rogue Special Mode None Game No. 1177 Rogue 1177 Adventurer 0 Explorer 0 Win Type - Total 72 Types 43/1/11/12/4/0/0/1/0 Lore% 92 Gallery% 91 Achievement% 83 Wizard Run 0 Options --------- ASCII 1 Keyboard 0 Movement Numpad Keybinds 0 Fullscreen 0 Font 14/SmallcapsGlow Map View 76x50 Tactical HUD 1 Map Filters NONE Filters NONE Steam 1 RUN: cd9b2e4d-eb0f-4740-bec8-c39017a69f14